[Event "FISCA IM Round Robin 2022"]
[Site "Cap Aurora"]
[Date "2022.06.27"]
[Round "7.1"]
[White "Sanz Wawer, Daniel"]
[Black "Cosma, Ioan"]
[Result "1/2-1/2"]
[ECO "C42"]
[WhiteElo "2363"]
[BlackElo "2394"]
[Annotator "TA"]
[PlyCount "99"]
[EventDate "2022.06.22"]
[EventType "tourn"]
[EventCountry "ROU"]
[SourceTitle "playchess.com"]
[Source "ChessBase"]
[SourceQuality "1"]
[TimeControl "40/5400+30:900+30"]

{[%evp 17,99,0,5,0,0,0,16,14,15,12,16,1,12,0,8,0,0,0,0,-22,-34,-20,0,0,0,0,0,0,52,62,43,58,67,0,0,-8,-20,-23,-37,-29,0,-94,-83,-91,-51,-89,-96,-153,-108,-137,0,-65,0,0,0,0,47,54,178,191,187,166,150,79,87,31,46,0,0,0,0,0,0,0,0,0,0,0,0,0,0,0,0,0]} 1. e4 {[%emt 0:00:06]} e5 {[%emt 0:00:12]} 2. Nf3 {[%emt 0:00:09]} Nf6 {[%emt 0:00:07]} 3. Nxe5 {[%emt 0:00:51]} d6 {[%emt 0:00:10]} 4. Nf3 {[%emt 0:00:08]} Nxe4 {[%emt 0:00:10]} 5. Nc3 {[%emt 0:00:04]} Nxc3 {[%emt 0:00:09]} 6. dxc3 {[%emt 0:00:04]} Be7 {[%emt 0:00:09]} 7. Bf4 {[%emt 0:00:24]} O-O {[%emt 0:00:18]} 8. Qd2 {[%emt 0:00:16]} Nd7 {[%emt 0:00:18]} 9. O-O-O {[%emt 0:02:18]} Nc5 {[%emt 0:00:20]} 10. h4 {[%emt 0:06:34][%cal Bh2h4,Bh4h5,Bh5h6][%mdl 32] 10.Bc4 is a critical line. C42: Petroff Defence: 3 Nxe5 and unusual White 3rd moves.} Re8 {[%emt 0:03:22]} 11. Bc4 {[%emt 0:12:46]} Be6 {[%emt 0:00:50]} 12. Bxe6 {[%emt 0:00:06]} Nxe6 {[%emt 0:00:15]} 13. Be3 {[%emt 0:00:06]} Qd7 {[%emt 0:02:58]} 14. Kb1 {[%emt 0:01:42]} (14. Ng5 {looks sharper.} a5 15. Qd3 Nf8 16. Qd5) 14... Qc6 {[%emt 0:00:51]} 15. h5 {[%emt 0:03:06]} Bf6 {[%emt 0:05:52]} 16. Rh3 {[%emt 0:04:28]} Nc5 {[%emt 0:01:27] [#]} 17. h6 $146 {[%emt 0:12:00]} ({Predecessor:} 17. g4 Ne4 18. Qd3 Qd7 19. Rg1 h6 20. Rh2 Qe7 21. g5 Nxg5 22. Nxg5 Bxg5 23. Rhg2 {1-0 (39) Sammour Hasbun,J (2449)-Fridman,D (2626) ICC INT 2007}) 17... g6 {[%emt 0:01:37]} 18. Bd4 {[%emt 0:06:03]} Ne4 {[%emt 0:01:31]} 19. Qf4 {[%emt 0:04:48]} Re6 {[%emt 0:02:29]} 20. Bxf6 {[%emt 0:03:19]} Rxf6 {[%emt 0:00:22]} 21. Qe3 {[%emt 0:00:23]} Re8 {[%emt 0:08:52]} 22. Nd4 {[%emt 0:03:43]} ({Of course not} 22. Qxa7 b6 23. Nd4 Qd7 $15) 22... Qd7 {[%emt 0:14:25]} (22... Nxf2 $2 23. Nxc6 Rxe3 24. Rxe3 $18) ({Better is} 22... Qd5 $11 23. f3 c5) 23. f3 $14 {[%emt 0:02:21]} Nc5 {[%emt 0:00:10]} 24. Qd2 {[%emt 0:00:44]} Ne6 {[%emt 0:05:16]} 25. g4 {[%emt 0:00:07]} (25. c4 $14) 25... c5 $36 {[%emt 0:03:41][%mdl 2048] Black has good play.} 26. g5 {[%emt 0:14:52] [#]} Nxd4 $1 {[%emt 0:01:02]} 27. gxf6 {[%emt 0:02:06][%cal Od1e1] aiming for Re1!} (27. cxd4 {is more complex.} Qxh3 28. gxf6 c4 29. Qf4) 27... Qxh3 {[%emt 0:11:24]} 28. cxd4 {[%emt 0:00:04]} cxd4 {[%emt 0:02:49]} 29. Qxd4 {[%emt 0:01:40]} (29. Qf4 $11 {remains equal.}) 29... Qxh6 $17 {[%emt 0:00:49]} 30. Qxd6 $11 {[%emt 0:00:45][%mdl 4096] Endgame KQR-KQR} Qe3 {[%emt 0:00:48]} 31. f4 {[%emt 0:02:31]} h5 {[%emt 0:01:27]} 32. f5 {[%emt 0:06:28] Against Qe6} (32. Qd7 $142) 32... g5 $17 {[%emt 0:00:30]} 33. a3 {[%emt 0:01:00]} h4 {[%emt 0:02:20]} (33... Qe5 $17 {Threatens to win with ...Qxd6.} 34. Qd7 Kf8) 34. Ka2 {[%emt 0:03:05]} (34. Qd7 $11) 34... Qe4 {[%emt 0:04:32]} (34... Qe5 $15 35. Qd7 Kf8) 35. Qd7 $1 $11 {[%emt 0:01:33] [#] Hoping for Rg1.} Rf8 {[%emt 0:09:01]} 36. Qe7 {[%emt 0:00:52]} Qc6 {[%emt 0:02:56]} (36... Qc4+ $11 {is superior.} 37. Ka1 Rc8) 37. Qe3 $1 $14 {[%emt 0:04:57][%csl LRa7,LRg5]} Qxf6 {[%emt 0:03:40]} (37... Qc4+ $14 38. Kb1 Qf4 39. Qxf4 gxf4) 38. Rg1 $18 {[%emt 0:00:04]} Rc8 {[%emt 0:03:48]} 39. Rxg5+ {[%emt 0:00:05]} Kf8 {[%emt 0:00:08]} 40. Qg1 {[%emt 0:01:43]} (40. Qf4 $142 {Strongly threatening Qb4+.} Ke7 41. Qb4+ (41. Qxh4 Rc5 $16) 41... Kd8 42. Qxh4) 40... Ke7 $16 {[%emt 0:02:24]} (40... Rxc2 $2 41. Rg8+ Ke7 42. Qe3+ Kd6 43. Qd3+ Ke5 44. Qxc2 $18) 41. Qe1+ {[%emt 0:15:13]} ({White should try} 41. Rg2 $16) 41... Kd7 $14 {[%emt 0:15:18]} 42. Qxh4 {[%emt 0:01:05]} (42. Rg4 $14 Rc5 43. Rxh4) 42... Rxc2 $11 {[%emt 0:02:24][%csl Gc2][%cal Rf6b2] The position is equal.} 43. Qa4+ {[%emt 0:00:00]} Qc6 {[%emt 0:00:44]} 44. Qd4+ {[%emt 0:00:00]} Qd6 {[%emt 0:00:32]} 45. Qe4 {[%emt 0:01:16]} Rxb2+ {[%emt 0:02:07]} 46. Kxb2 {[%emt 0:00:03]} Qf6+ {[%emt 0:00:04]} 47. Kb3 {[%emt 0:00:42]} Qxg5 {[%emt 0:00:06]} 48. Qxb7+ {[%emt 0:00:02]} Ke8 {[%emt 0:01:20]} 49. Qc6+ {[%emt 0:01:32]} Ke7 {[%emt 0:00:39]} 50. Qc5+ {[%emt 0:00:50] Weighted Error Value: White=0.18 (very precise) /Black=0.15 (very precise)} 1/2-1/2

[Event "FISCA IM Round Robin 2022"]
[Site "Cap Aurora"]
[Date "2022.06.27"]
[Round "7.2"]
[White "Antonica, Dragos-Andrei"]
[Black "Voiteanu, Gabriel"]
[Result "1/2-1/2"]
[ECO "A13"]
[WhiteElo "2355"]
[BlackElo "2189"]
[Annotator "TA"]
[PlyCount "49"]
[EventDate "2022.06.22"]
[EventType "tourn"]
[EventCountry "ROU"]
[SourceTitle "playchess.com"]
[Source "ChessBase"]
[SourceQuality "1"]
[TimeControl "40/5400+30:900+30"]

{[%evp 9,49,0,25,17,20,15,38,5,3,-18,-13,-12,0,-15,-5,-32,-15,-50,-49,-49,-17,-65,-51,-45,-45,-46,-51,-52,-52,-47,-47,-50,-16,-44,-47,-58,-47,-74,-76,-70,-52,-79]} 1. c4 {[%emt 0:00:12]} c6 {[%emt 0:00:48]} 2. Nf3 {[%emt 0:01:54]} d5 {[%emt 0:00:10]} 3. b3 {[%emt 0:00:04]} Nf6 {[%emt 0:01:51]} 4. Bb2 {[%emt 0:00:20]} e6 {[%emt 0:03:33]} 5. g3 {[%emt 0:02:09]} Bd6 {[%emt 0:02:38]} 6. Bg2 {[%emt 0:01:05] A13: English Opening: 1...e6.} O-O {[%emt 0:00:37]} 7. O-O {[%emt 0:00:23]} Re8 {[%emt 0:01:21]} 8. d3 {[%emt 0:04:42] White is slightly better.} e5 {[%emt 0:07:30]} 9. Qc2 {[%emt 0:07:39]} Bg4 {[%emt 0:07:05]} 10. Nbd2 {[%emt 0:07:09] [#]} Qd7 $146 {[%emt 0:04:57]} ({Predecessor:} 10... Nbd7 11. h3 Bh5 12. g4 Bg6 13. Nh4 Rc8 14. Rac1 Qe7 15. cxd5 cxd5 16. Qxc8 Rxc8 17. Rxc8+ Nf8 18. Rfc1 N6d7 19. Nxg6 hxg6 {1-0 (46) Ram,S (2269)-Mahalakshmi,M (2041) Chennai 2012}) 11. Rfe1 {[%emt 0:03:50]} a5 {[%emt 0:04:47]} 12. Rac1 {[%emt 0:06:38]} (12. d4 {looks sharper.} e4 13. Ne5 Qf5 14. Nf1) 12... Na6 {[%emt 0:07:30]} 13. cxd5 {[%emt 0:08:26]} cxd5 {[%emt 0:01:10]} 14. Nf1 {[%emt 0:05:46]} Bh3 {[%emt 0:08:13]} 15. Bh1 {[%emt 0:02:07]} (15. a3 $11 {was preferrable.}) 15... a4 {[%emt 0:02:18]} 16. bxa4 {[%emt 0:11:12]} Nb4 {[%emt 0:03:14][%csl LRa2,LRa4,LRc2]} 17. Qb3 {[%emt 0:02:13][%cal Ob2e5]} Qxa4 {[%emt 0:02:23]} 18. Qxa4 {[%emt 0:01:44]} Rxa4 {[%emt 0:00:02]} 19. a3 {[%emt 0:00:12]} Nc6 {[%emt 0:01:50]} 20. Ne3 {[%emt 0:00:15]} Bxa3 {[%emt 0:03:49]} 21. Bxa3 {[%emt 0:06:57]} Rxa3 {[%emt 0:00:11]} 22. Rb1 {[%emt 0:00:48]} Bc8 {[%emt 0:08:19]} 23. Nd2 {[%emt 0:03:26]} Ra2 {[%emt 0:06:53]} 24. Nb3 {[%emt 0:02:10]} Rd8 {[%emt 0:00:44]} 25. Ra1 {[%emt 0:21:39] Weighted Error Value: White=0.14 (very precise) /Black=0.10 (very precise)} 1/2-1/2

[Event "FISCA IM Round Robin 2022"]
[Site "Cap Aurora"]
[Date "2022.06.27"]
[Round "7.3"]
[White "Cosman, Andreea-Marioara"]
[Black "Ciolacu, Alessia-Mihaela"]
[Result "1/2-1/2"]
[ECO "D31"]
[WhiteElo "2120"]
[BlackElo "2198"]
[Annotator "RC"]
[PlyCount "51"]
[EventDate "2022.06.22"]
[EventType "tourn"]
[EventCountry "ROU"]
[SourceTitle "playchess.com"]
[Source "ChessBase"]
[SourceQuality "1"]
[TimeControl "40/5400+30:900+30"]

1. d4 {[%emt 0:00:03]} d5 {[%emt 0:00:04]} 2. c4 {[%emt 0:00:05]} e6 {[%emt 0:00:04]} 3. Nc3 {[%emt 0:00:08]} a6 {[%emt 0:00:04]} 4. cxd5 {[%emt 0:00:28]} exd5 {[%emt 0:00:06]} 5. Bf4 {[%emt 0:01:02]} c6 {[%emt 0:01:26]} 6. e3 {[%emt 0:00:36]} Bd6 {[%emt 0:01:37]} 7. Bg3 {[%emt 0:00:35]} Bf5 {[%emt 0:12:52]} 8. Qb3 {[%emt 0:12:13]} Bxg3 {[%emt 0:11:01]} 9. hxg3 {[%emt 0:02:05]} Ra7 {[%emt 0:03:49]} 10. Nh3 {[%emt 0:02:25]} Nf6 {[%emt 0:02:46]} 11. Nf4 {[%emt 0:00:33]} Nbd7 {[%emt 0:03:44]} 12. Be2 {[%emt 0:02:51]} Qe7 {[%emt 0:02:26]} 13. Rc1 {[%emt 0:10:08]} O-O {[%emt 0:00:44]} 14. Na4 {[%emt 0:10:05]} h6 {[%emt 0:18:59]} 15. Nd3 {[%emt 0:06:28]} Ne4 {[%emt 0:03:49]} 16. Nac5 {[%emt 0:04:50]} Re8 {[%emt 0:02:00]} 17. Nxe4 {[%emt 0:10:00]} Bxe4 {[%emt 0:01:12]} 18. O-O {[%emt 0:00:21]} Bxd3 {[%emt 0:03:57]} 19. Bxd3 {[%emt 0:00:07]} Qg5 {[%emt 0:00:23]} 20. Rce1 {[%emt 0:05:36]} a5 {[%emt 0:13:17]} 21. e4 {[%emt 0:04:40]} a4 {[%emt 0:00:20]} 22. Qb4 {[%emt 0:02:10]} dxe4 {[%emt 0:01:28]} 23. Bxe4 {[%emt 0:00:17]} Nf6 {[%emt 0:00:55]} 24. Bf3 {[%emt 0:12:45]} Rxe1 {[%emt 0:03:27]} 25. Rxe1 {[%emt 0:00:05]} Qa5 {[%emt 0:00:13]} 26. Qc3 {[%emt 0:01:27]} 1/2-1/2

[Event "FISCA IM Round Robin 2022"]
[Site "Cap Aurora"]
[Date "2022.06.27"]
[Round "7.4"]
[White "Dev, Shah"]
[Black "Manolache, Marius"]
[Result "0-1"]
[ECO "E73"]
[WhiteElo "2292"]
[BlackElo "2481"]
[Annotator "TA"]
[PlyCount "80"]
[EventDate "2022.06.22"]
[EventType "tourn"]
[EventCountry "ROU"]
[SourceTitle "playchess.com"]
[Source "ChessBase"]
[SourceQuality "1"]
[TimeControl "40/5400+30:900+30"]

{[%evp 10,80,53,38,47,0,0,0,0,-37,-25,-27,-25,-17,-1,-30,-37,-36,-31,-40,-15,-81,-41,-71,-9,-8,1,-122,-143,-121,-114,-135,-82,-282,-272,-287,-280,-534,-535,-491,-333,-318,-333,-307,-268,-313,-258,-250,-233,-231,-170,-169,-139,-183,-175,-177,-188,-192,-172,-168,-174,-237,-230,-229,-220,-784,-741,-29995,-29996,-29996,-29995,-29997,0]} 1. d4 {[%emt 0:03:50]} Nf6 {[%emt 0:00:07]} 2. c4 {[%emt 0:00:12]} g6 {[%emt 0:00:27]} 3. Nc3 {[%emt 0:00:06]} Bg7 {[%emt 0:00:06]} 4. e4 {[%emt 0:00:07]} d6 {[%emt 0:00:07]} 5. Be2 {[%emt 0:00:05]} O-O {[%emt 0:02:50]} 6. Be3 {[%emt 0:00:04]} Na6 {[%emt 0:01:25] E73: King's Indian: Averbakh Variation without 6...c5.} 7. g4 {[%emt 0:17:18]} (7. Nf3 $14) 7... c5 $11 {[%emt 0:00:24][%cal Of6g4] ...Nxg4! is the strong threat.} 8. d5 {[%emt 0:01:54]} Qb6 {[%emt 0:01:37] [#] The position is equal.} 9. Na4 $146 {[%emt 0:05:07]} (9. g5 {looks sharper.} Nxe4 10. Nxe4 Qxb2 11. Rc1) ({Predecessor:} 9. g5 Ng4 10. Bd2 f5 11. exf5 gxf5 12. Na4 Qc7 13. Nh3 e6 14. Nc3 Qf7 15. Qb3 {1-0 (30) Sulskis,S (2525)-Sepp,O (2434) Finland 2017}) 9... Qa5+ {[%emt 0:03:47]} 10. Bd2 {[%emt 0:00:52]} Qd8 {[%emt 0:00:24]} 11. Nc3 {[%emt 0:05:17]} b5 {[%emt 0:02:07]} 12. cxb5 {[%emt 0:01:47]} (12. g5 $5 {[%cal Rg5f6]} b4 13. gxf6 bxc3 14. fxg7 cxd2+ 15. Qxd2 Kxg7 16. O-O-O $14) 12... Nc7 {[%emt 0:00:05]} 13. g5 {[%emt 0:05:50]} Nd7 {[%emt 0:01:00]} 14. Nf3 {[%emt 0:06:01]} e6 {[%emt 0:06:34]} 15. Bf4 {[%emt 0:05:49]} (15. dxe6 $1 $11 {keeps the balance.} fxe6 16. h4) 15... exd5 $17 {[%emt 0:18:03]} 16. Nxd5 {[%emt 0:03:03]} Nxd5 {[%emt 0:00:45]} (16... Re8 $17 17. Nxc7 (17. Bxd6 $2 Nxd5 18. Qxd5 Nb6 $17) 17... Qxc7) 17. Qxd5 $11 {[%emt 0:00:10]} Nb6 {[%emt 0:00:29]} 18. Qd2 {[%emt 0:07:21]} (18. Qxd6 $11 {was the only way to keep the balance.} Bxb2 19. Rb1 Bc3+ 20. Nd2) 18... Re8 $17 {[%emt 0:03:43][%mdl 1024] Black has strong compensation.} 19. Qc2 {[%emt 0:07:17]} (19. Bxd6 Rxe4 20. Bxc5 Qe8 $19) 19... Bb7 {[%emt 0:02:21]} 20. Nd2 {[%emt 0:00:14]} Qe7 {[%emt 0:03:45]} (20... f5 $142 {[%cal Re8e4] Hoping for ...Rxe4.} 21. O-O-O fxe4) 21. O-O-O $2 {[%emt 0:08:55] Now White is beyond hope.} (21. O-O $17) 21... c4 $19 {[%emt 0:02:26] And now ...Rac8 would win.} (21... Bxe4 22. Nxe4 Qxe4 23. Qxe4 Rxe4 24. Be3 $15) 22. Rhe1 {[%emt 0:05:01]} Rac8 {[%emt 0:01:15]} 23. e5 $2 {[%emt 0:04:30]} (23. Nb1 Bxe4 24. Bf3 Bxc2 25. Rxe7 Bxd1 26. Rxe8+ Rxe8 27. Bxd1) 23... c3 {[%emt 0:00:20]} 24. bxc3 {[%emt 0:00:43]} dxe5 {[%emt 0:03:44]} 25. Be3 {[%emt 0:00:53]} Qa3+ {[%emt 0:12:36]} 26. Qb2 {[%emt 0:00:30]} Rxc3+ {[%emt 0:04:38]} 27. Kb1 {[%emt 0:00:07]} Qxb2+ {[%emt 0:00:16]} 28. Kxb2 {[%emt 0:00:07]} Na4+ {[%emt 0:00:08]} 29. Kb1 {[%emt 0:00:37]} Rcc8 {[%emt 0:03:42] White must now prevent ...Nc3+.} 30. Rc1 {[%emt 0:01:32]} Nc3+ {[%emt 0:00:21]} 31. Kb2 {[%emt 0:03:34]} e4 {[%emt 0:00:20]} 32. Kb3 {[%emt 0:00:08]} Nxe2 {[%emt 0:01:11]} 33. Rxc8 {[%emt 0:00:03]} Rxc8 {[%emt 0:00:47]} ({Weaker is} 33... Bxc8 34. Rxe2 Bg4 35. Re1 $15) 34. Rxe2 {[%emt 0:00:01]} Bd5+ {[%emt 0:00:12]} 35. Ka4 {[%emt 0:04:58]} (35. Kb4 $142) 35... Rc2 {[%emt 0:01:54]} ({Inferior is} 35... Bxa2 36. Nxe4 Rc4+ 37. Ka3 Rxe4 38. Rxa2 $11) 36. a3 {[%emt 0:00:01]} a6 $1 {[%emt 0:09:44]} (36... Bc3 37. Nb1 $1 Rxe2 38. Nxc3 Rxe3 39. fxe3 $18) 37. bxa6 $2 {[%emt 0:01:16] [#]} (37. Ka5 axb5 38. Kxb5) 37... Rb2 $1 {[%emt 0:00:09] ( -> ...Bc6+)} 38. Bc5 {[%emt 0:03:39]} Bc6+ {[%emt 0:00:08] A strong pair of Bishops. Black mates.} 39. Ka5 {[%emt 0:00:02]} Rb5+ {[%emt 0:00:06]} 40. Ka4 {[%emt 0:00:02]} Rb8+ $2 {[%emt 0:00:45][%mdl 32768] Weighted Error Value: White=0.82/Black=0.11 (very precise) . Loss on time!?} (40... Bc3 {mates} 41. Bb4 Rxb4+ 42. Ka5 Rb8#) 0-1

[Event "FISCA IM Round Robin 2022"]
[Site "Cap Aurora"]
[Date "2022.06.27"]
[Round "7.5"]
[White "Srinath, Rao S.V."]
[Black "Buzbuchi, Ionut"]
[Result "1-0"]
[ECO "B22"]
[WhiteElo "2316"]
[BlackElo "2301"]
[Annotator "TA"]
[PlyCount "83"]
[EventDate "2022.06.22"]
[EventType "tourn"]
[EventCountry "ROU"]
[SourceTitle "playchess.com"]
[Source "ChessBase"]
[SourceQuality "1"]
[TimeControl "40/5400+30:900+30"]

{[%evp 22,83,0,1,6,4,4,0,0,0,18,14,21,14,17,-5,0,0,14,-17,92,30,119,124,250,255,272,49,40,37,131,45,58,0,0,0,406,143,351,171,155,0,0,0,0,0,0,0,7,0,0,0,0,0,35,36,97,0,858,810,1211,56,1089,613]} 1. e4 {[%emt 0:02:56]} c5 {[%emt 0:00:05]} 2. c3 {[%emt 0:00:07][%cal Bc2c3,Bc3d4,Bd4d5][%mdl 32]} Nf6 {[%emt 0:00:06]} 3. e5 {[%emt 0:00:06]} Nd5 {[%emt 0:00:05]} 4. d4 {[%emt 0:00:04]} cxd4 {[%emt 0:00:06]} 5. Nf3 {[%emt 0:00:03]} Nc6 {[%emt 0:00:46]} 6. cxd4 {[%emt 0:00:05]} d6 {[%emt 0:00:08]} 7. Bc4 {[%emt 0:00:04]} Nb6 {[%emt 0:00:12]} 8. Bb3 {[%emt 0:00:32]} dxe5 {[%emt 0:01:18]} 9. d5 {[%emt 0:00:20]} Na5 {[%emt 0:00:14]} 10. Nc3 {[%emt 0:00:05]} Nxb3 {[%emt 0:03:49]} 11. Qxb3 {[%emt 0:00:44]} e6 {[%emt 0:00:09]} 12. Nxe5 {[%emt 0:00:22]} Bd6 {[%emt 0:00:06] B22: Sicilian: 2 c3.} 13. Qb5+ {[%emt 0:01:37]} Kf8 {[%emt 0:01:03]} 14. Nf3 {[%emt 0:07:31]} exd5 {[%emt 0:00:09] The position is equal.} 15. Be3 {[%emt 0:00:36]} Be6 {[%emt 0:02:15]} 16. O-O {[%emt 0:03:38][%mdl 1024] White has compensation.} h5 {[%emt 0:00:10] [#]} 17. Nd4 $146 {[%emt 0:07:35]} ({Predecessor:} 17. Rfd1 h4 18. Ng5 Kg8 19. h3 Rh5 20. Nge4 Nc4 21. Nxd6 Nxd6 22. Qe2 Re5 23. Qd3 {0-1 (70) Spence,D (2237)-Nemcova,K (2287) Cesky Krumlov 2010}) 17... Kg8 {[%emt 0:09:58]} 18. Rae1 {[%emt 0:06:14]} Bd7 {[%emt 0:31:22] A strong pair of Bishops.} (18... Qh4 19. g3 Qd8 20. Nxe6 fxe6 21. Bxb6 Qxb6 22. Rxe6 Qxb5 23. Nxb5 $16) 19. Qd3 {[%emt 0:00:54]} Qf6 {[%emt 0:02:59]} 20. a4 {[%emt 0:09:18]} Be6 {[%emt 0:09:09]} (20... Nxa4 $11 21. Nxd5 Qg6 22. Qxg6 fxg6) 21. f4 {[%emt 0:12:57]} (21. Nxe6 $16 fxe6 22. Bxb6 axb6 23. Nxd5 $1 Bxh2+ 24. Kxh2 exd5 25. Qxd5+ Qf7 26. Re6) 21... Rd8 {[%emt 0:08:44]} (21... Bb4 $11) 22. Kh1 $1 $16 {[%emt 0:12:16]} Bb4 {[%emt 0:07:34]} (22... Bc7 $16 {might work better.}) 23. f5 $1 $18 {[%emt 0:03:04]} Bc8 {[%emt 0:00:13] [#]} 24. Bf4 $2 {[%emt 0:00:52]} (24. Ne6 $1 $18 {[%mdl 512] Threatens to win with Bg5.} fxe6 25. fxe6) 24... Nc4 $14 {[%emt 0:04:13]} 25. b3 {[%emt 0:05:26]} (25. Nxd5 Rxd5 26. Qxc4 Qxd4 $15) 25... Bc5 {[%emt 0:02:03]} (25... Kh7 $14) 26. Ncb5 {[%emt 0:03:59]} ({Better is} 26. Ne6 $1 $16 fxe6 27. fxe6) 26... a6 {[%emt 0:04:23]} 27. bxc4 {[%emt 0:01:13]} (27. Ne6 $1 $14 fxe6 28. fxe6) 27... axb5 $11 {[%emt 0:00:06]} 28. Be5 {[%emt 0:00:29]} Qb6 {[%emt 0:00:39][%mdl 8192] [#]} (28... bxc4 29. Bxf6 cxd3 30. Bxd8 $14) (28... dxc4 $11 {and Black stays safe.} 29. Bxf6 cxd3 30. Bxd8 Bxd4) 29. Qg3 $2 {[%emt 0:01:15]} Bf8 $2 {[%emt 0:02:56] [#]} (29... Qh6 $16 {was called for.}) 30. f6 {[%emt 0:04:23]} (30. cxb5 h4 31. Qf4 Qh6 32. Qxh6 Rxh6 $18) (30. Ne6 $142 $1 {[%cal Re5g7][%mdl 512]} Bxe6 31. Bc7) 30... g6 $18 {[%emt 0:00:21]} 31. Bc7 {[%emt 0:00:18] 0x0.0022fc2d41f1dp-1022s more active pieces. The black rooks are badly placed.} (31. cxb5 h4 32. Qf4 Bh6) (31. Nf3 $1 $16 {Hoping for Bc7.} Qc5 32. cxb5) 31... Qxd4 $11 {[%emt 0:00:07]} 32. Bxd8 {[%emt 0:00:03]} h4 $1 $36 {[%emt 0:02:31][%mdl 2048] Black is more active.} 33. Qe5 {[%emt 0:05:09]} Qxe5 {[%emt 0:03:36]} 34. Rxe5 {[%emt 0:00:09]} bxc4 {[%emt 0:00:23]} 35. Rxd5 {[%emt 0:00:39]} Be6 {[%emt 0:00:21]} 36. Rb5 {[%emt 0:01:34]} h3 {[%emt 0:00:05]} 37. Rd1 {[%emt 0:04:06] And now Ba5 would win.} (37. Rxb7 $2 hxg2+ 38. Kxg2 Bd5+ 39. Kf2 Rxh2+ 40. Ke1 Bxb7 $19) 37... hxg2+ {[%emt 0:00:30]} (37... c3 $5 {[%cal Rh8h4]} 38. Rc1 Bd7 39. Rxc3 (39. Rxb7 $2 hxg2+ 40. Kg1 Bc5+ 41. Kxg2 Bc6+ 42. Kf1 Bxb7 $19) 39... Bxb5 40. axb5 Rh5 $11) 38. Kxg2 {[%emt 0:00:04] Black must now prevent Be7.} Rh4 {[%emt 0:01:24] [#]} ({Black should try} 38... c3 $14) 39. Re5 {[%emt 0:04:47]} ({Reject} 39. Rxb7 $6 c3 40. Rc7 Rg4+ 41. Kf2 Rf4+ 42. Kg3 Rg4+ 43. Kf2 Rf4+ 44. Kg3 Rg4+ 45. Kf3 Rxa4 $11) (39. Ba5 $1 $16 {aiming for Rd8.} Bh6 40. Rd8+ (40. Rxb7 Rg4+ 41. Kf2 Rf4+ 42. Kg3 Rg4+ 43. Kf3 Rf4+ 44. Kg2 Rg4+ 45. Kf3 Rf4+ 46. Kg3 Rg4+ 47. Kf3 $14) 40... Kh7 41. Rxb7) 39... Bh6 $2 {[%emt 0:02:33][%mdl 8192] [#]} (39... Bg4 $11 40. Rdd5 Be6) 40. Rxe6 $1 $18 {[%emt 0:01:31][%mdl 512]} Kh7 {[%emt 0:03:39]} (40... g5 41. Re8+) 41. Kg1 $2 Bf8 $2 {[%emt 0:15:30][%mdl 8192]} (41... fxe6 $14 42. Rd7+ Kh8) 42. Re5 {Weighted Error Value: White=0.71/Black=0.58} 1-0

[Event "FISCA IM Round Robin 2022"]
[Site "Cap Aurora"]
[Date "2022.06.28"]
[Round "8.1"]
[White "Cosma, Ioan"]
[Black "Buzbuchi, Ionut"]
[Result "1-0"]
[ECO "A39"]
[WhiteElo "2394"]
[BlackElo "2301"]
[Annotator "TA"]
[PlyCount "55"]
[EventDate "2022.06.22"]
[EventType "tourn"]
[EventCountry "ROU"]
[SourceTitle "playchess.com"]
[Source "ChessBase"]
[SourceQuality "1"]
[TimeControl "40/5400+30:900+30"]

{[%evp 21,55,45,47,48,50,39,29,35,34,25,41,46,148,22,40,25,40,0,32,32,114,126,131,125,107,71,67,0,256,261,266,265,254,233,233,235]} 1. Nf3 {[%emt 0:01:44]} c5 {[%emt 0:02:53]} 2. c4 {[%emt 0:00:36]} g6 {[%emt 0:00:53]} 3. d4 {[%emt 0:00:23]} cxd4 {[%emt 0:00:15]} 4. Nxd4 {[%emt 0:00:08]} Nf6 {[%emt 0:00:29]} 5. Nc3 {[%emt 0:01:06]} Nc6 {[%emt 0:00:08]} 6. g3 {[%emt 0:00:37]} Bg7 {[%emt 0:00:31]} 7. Bg2 {[%emt 0:00:10]} O-O {[%emt 0:00:11]} 8. O-O {[%emt 0:00:23]} Nxd4 {[%emt 0:01:19]} 9. Qxd4 {[%emt 0:00:07]} d6 {[%emt 0:00:40]} 10. Qd3 {[%emt 0:00:10]} Qa5 {[%emt 0:01:15]} 11. Bd2 {[%emt 0:02:02]} Qh5 {[%emt 0:02:35]} 12. h4 {[%emt 0:00:45] A39: Symmetrical English vs ...g6: 4 Bg2 Bg7 5 Nf3 Nf6 6 0-0 0-0 7 d4.} h6 {[%emt 0:14:54]} 13. Bf3 {[%emt 0:07:08]} Bg4 {[%emt 0:03:02] [#]} 14. b3 $146 {[%emt 0:05:12] White has an edge.} (14. Bxb7 Rab8 15. Bf3 Rxb2 $15) ({Predecessor:} 14. Kg2 Bxf3+ 15. Qxf3 Qxf3+ 16. Kxf3 Rac8 17. b3 Nd7 18. Rac1 Bxc3 19. Bxc3 f5 20. Rfd1 {0-1 (39) Kavan,Z (2190)-Markovic,I (2195) Czech Republic 2006}) 14... Bxf3 {[%emt 0:14:21]} 15. exf3 {[%emt 0:00:18]} Nd7 {[%emt 0:04:43]} 16. Kg2 {[%emt 0:02:30]} Rac8 {[%emt 0:03:22]} ({Better is} 16... Ne5 $14 17. Qe3 Nc6) 17. Rae1 {[%emt 0:06:00]} (17. Nd5 $1 $16 {[%cal Rd5e7]} Ne5 18. Nxe7+ Kh7 19. Qe4 (19. Qxd6 $2 Qxf3+ 20. Kh3 Rcd8 $19)) 17... Rfe8 {[%emt 0:00:36]} 18. Nd5 {[%emt 0:01:20]} e6 $1 {[%emt 0:03:43]} 19. Nc3 {[%emt 0:08:54]} Nc5 {[%emt 0:08:51]} 20. Qe2 {[%emt 0:02:09]} (20. Qxd6 Rcd8 21. Qf4 Nd3 $17) 20... a6 {[%emt 0:01:11] Inhibits Nb5.} (20... Red8 $14) 21. b4 $1 $36 {[%emt 0:08:38][%mdl 2048] White is on the roll.} Nd7 {[%emt 0:00:40]} 22. Ne4 {[%emt 0:00:55]} Bf8 {[%emt 0:01:46]} 23. g4 {[%emt 0:12:27]} Qe5 {[%emt 0:02:48]} 24. g5 {[%emt 0:01:17]} ({White should try} 24. Bc3 $14 Qf4 25. Bd2) 24... Bg7 $2 {[%emt 0:03:05][%mdl 8192] [#]} (24... Qb2 $11 25. Qd3 (25. gxh6 Qxa2 26. h7+ Kxh7 $11) 25... Qxa2 26. Nxd6 Bxd6 27. Qxd6 Nb6 $1 28. Qxb6 Qxd2) 25. f4 $1 $18 {[%emt 0:07:21]} ({Not} 25. gxh6 Bf8 $16) 25... Qd4 {[%emt 0:00:41]} 26. Bc3 {[%emt 0:00:21]} Qxc4 {[%emt 0:00:07]} 27. Qxc4 {[%emt 0:00:19]} Rxc4 {[%emt 0:00:10]} 28. Bxg7 {[%emt 0:00:07] Weighted Error Value: White=0.23 (precise) /Black=0.47} ({And not} 28. Nxd6 Bxc3 29. Re3 Rxf4 $11) 1-0